fUST/lending_fUST_20251011
["ID","MTS","AMOUNT","RATE_DAILY","PERIOD"]
[390817617,1760170289815,-221.999969,0.00029687,15]
[390817618,1760170289824,-308.220168,0.00029688,20]
[390817619,1760170289833,-221.999969,0.00029688,20]
[390817620,1760170289842,-308.220168,0.00029692,30]
[390817621,1760170289851,-308.220168,0.00029692,20]
[390817622,1760170289861,-221.999969,0.00029692,30]
[390817623,1760170289870,-221.999969,0.00029692,20]
[390817624,1760170289879,-8400.27721866,0.00029692,2]
[390817625,1760170289889,-359306.3969,0.00029692,7]
[390817626,1760170289898,-160.0,0.00029698,3]
[390817627,1760170289907,-277.37209656,0.00029698,5]
[390817628,1760170289917,-2369.46495543,0.00029698,60]
[390817629,1760170289927,-200.0,0.000297,120]
[390817630,1760170289937,-709.81176,0.000297,120]
[390817631,1760170289948,-203.42146,0.000297,120]
[390817632,1760170289958,-313.23322,0.000297,120]
[390817633,1760170289967,-210.80002,0.000297,120]
[390817634,1760170289977,-4497.51126,0.000297,60]
[390817635,1760170289987,-154.0,0.000297,120]
[390817636,1760170289996,-5075.047217,0.00029702,60]
[390817637,1760170290006,-500.0,0.00029704,10]
[390817638,1760170290015,-304.84,0.00029704,2]
[390817639,1760170290024,-308.220168,0.00029705,32]
[390817640,1760170290034,-221.999969,0.00029705,32]
[390817641,1760170290043,-500.0,0.00029706,5]
[390817642,1760170290052,-308.220168,0.00029709,30]
[390817643,1760170290061,-221.999969,0.00029709,30]
[390817644,1760170290070,-1000.0,0.00029719,2]
[390817645,1760170290079,-308.220168,0.00029726,30]
[390817646,1760170290089,-221.999969,0.00029726,30]
[390817647,1760170290098,-308.220168,0.00029729,32]
[390817648,1760170290108,-221.999969,0.00029729,32]
[390817649,1760170290118,-308.220168,0.00029743,30]
[390817650,1760170290128,-221.999969,0.00029743,30]
[390817651,1760170290142,-308.220168,0.00029752,32]
[390817652,1760170290151,-221.999969,0.00029752,32]
[390817653,1760170290161,-308.220168,0.00029764,10]
[390817654,1760170290171,-221.999969,0.00029764,10]
[390817655,1760170290180,-308.220168,0.00029776,32]
[390817656,1760170290191,-221.999969,0.00029776,32]
[390817657,1760170290200,-150.11,0.00029784,15]
[390817658,1760170290212,-168.18277567,0.00029786,20]
[390817659,1760170290222,-288894.90548481,0.00029792,20]
[390817660,1760170290234,-3588.0,0.00029792,7]
[390817661,1760170290243,-105203.49759713,0.00029792,7]
[390817662,1760170290253,-2524480.93209105,0.00029792,20]
[390817663,1760170290812,-652491.93248583,0.00029792,20]
[390817664,1760170290823,-724.63680619,0.00029792,20]
[390817665,1760170290835,-393.04281597,0.00029792,20]
[390817666,1760170290845,-594.82644238,0.00029792,20]
[390817667,1760170290857,-13863.82825822,0.00029792,20]
[390817668,1760170290868,-8570.81982455,0.00029792,20]
[390817669,1760170291682,-160.3606783,0.000236,2]
[390817670,1760170291691,-177.90835514,0.000236,2]
[390817671,1760170291700,-473.73258196,0.0002698,3]
[390817672,1760170293687,-160.0,0.00023614,2]
[390817673,1760170293696,-746.291714,0.0002697,7]
[390817674,1760170293706,-263.56741804,0.0002698,3]
[390817675,1760170293715,-876.529634,0.0002699,7]
[390817676,1760170293724,-7417.581521,0.0002699,7]
[390817677,1760170293736,-151.0,0.0002699,7]
[390817678,1760170293746,-876.529634,0.0002699,7]
[390817679,1760170293755,-7417.581521,0.0002699,7]
[390817680,1760170293764,-876.529634,0.0002699,7]
[390817681,1760170293773,-7417.581521,0.0002699,7]
[390817682,1760170293782,-7417.581521,0.0002699,7]
[390817683,1760170293791,-2609.37557469,0.00027085,2]
[390817684,1760170293800,-876.529634,0.00027173,7]
[390817685,1760170293810,-7417.581521,0.00027173,7]
[390817686,1760170293819,-151.0,0.00027173,7]
[390817687,1760170293828,-876.529634,0.00027173,7]
[390817688,1760170293837,-7417.581521,0.00027173,7]
[390817689,1760170293846,-876.529634,0.00027173,7]
[390817690,1760170293855,-7417.581521,0.00027173,7]
[390817691,1760170293864,-7417.581521,0.00027173,7]
[390817692,1760170293874,-876.529634,0.00027197,7]
[390817693,1760170293883,-7417.581521,0.00027197,7]
[390817694,1760170293892,-151.0,0.00027197,7]
[390817695,1760170293902,-876.529634,0.00027197,7]
[390817696,1760170293912,-7417.581521,0.00027197,7]
[390817697,1760170293922,-876.529634,0.00027197,7]
[390817698,1760170293931,-7417.581521,0.00027197,7]
[390817699,1760170293940,-7417.581521,0.00027197,7]
[390817700,1760170293950,-1254.67,0.00027397,9]
[390817701,1760170293959,-500.0,0.00027397,9]
[390817702,1760170293970,-1808.33,0.00027397,9]
[390817703,1760170293983,-573.94926883,0.00027397,9]
[390817704,1760170293993,-1254.67,0.00027397,9]
[390817705,1760170294003,-1878.23,0.00027397,9]
[390817706,1760170294012,-1808.33,0.00027397,9]
[390817707,1760170294022,-500.0,0.00027397,9]
[390817708,1760170294032,-1254.67,0.00027397,9]
[390817709,1760170294041,-1878.23,0.00027397,9]
[390817710,1760170294050,-1808.33,0.00027397,9]
[390817711,1760170294068,-247.36,0.00027397,9]
[390817712,1760170294084,-1254.67,0.00027397,9]
[390817713,1760170294100,-1808.33,0.00027397,9]
[390817714,1760170294118,-1878.23,0.00027397,9]
[390817715,1760170294139,-876.529634,0.00027397,7]
[390817716,1760170294155,-1254.67,0.00027397,9]
[390817717,1760170294172,-1808.33,0.00027397,9]
[390817718,1760170294187,-1878.23,0.00027397,9]
[390817719,1760170294203,-876.529634,0.00027397,7]
[390817720,1760170294221,-1254.67,0.00027397,9]
[390817721,1760170294243,-1808.33,0.00027397,9]
[390817722,1760170294257,-7417.581521,0.00027397,7]
[390817723,1760170294272,-1878.23,0.00027397,9]
[390817724,1760170294290,-1254.67,0.00027397,9]
[390817725,1760170294305,-1808.33,0.00027397,9]
[390817726,1760170294320,-1878.23,0.00027397,9]
[390817727,1760170294336,-7417.581521,0.00027397,7]
[390817728,1760170294351,-1254.67,0.00027397,9]
[390817729,1760170294366,-1808.33,0.00027397,9]
[390817730,1760170294380,-1254.67572576,0.00027397,9]
[390817731,1760170294395,-1808.33,0.00027397,9]
[390817732,1760170294409,-1878.23,0.00027397,9]
[390817733,1760170294425,-200.465068,0.00027397,7]
[390817734,1760170294441,-1808.33,0.00027397,9]
[390817735,1760170294454,-876.529634,0.00027397,7]
[390817736,1760170294468,-1878.23,0.00027397,9]
[390817737,1760170294479,-1808.33,0.00027397,9]
[390817738,1760170294488,-1878.23,0.00027397,9]
[390817739,1760170294498,-876.529634,0.00027397,7]
[390817740,1760170294507,-1808.33,0.00027397,9]
[390817741,1760170294517,-1878.23,0.00027397,9]
[390817742,1760170294526,-7417.581521,0.00027397,7]
[390817743,1760170294535,-1808.33,0.00027397,9]
[390817744,1760170294546,-1878.23,0.00027397,9]
[390817745,1760170294556,-7417.581521,0.00027397,7]
[390817746,1760170294565,-1808.33,0.00027397,9]
[390817747,1760170294574,-1878.23,0.00027397,9]
[390817748,1760170294584,-1808.33,0.00027397,9]
[390817749,1760170294593,-1878.23,0.00027397,9]
[390817750,1760170294603,-1808.33,0.00027397,9]
[390817751,1760170294612,-1878.23,0.00027397,9]
[390817752,1760170294621,-876.529634,0.00027397,7]
[390817753,1760170294631,-1808.33,0.00027397,9]
[390817754,1760170294640,-1878.23,0.00027397,9]
[390817755,1760170294649,-876.529636,0.00027397,7]
[390817756,1760170294659,-1808.33,0.00027397,9]
[390817757,1760170294668,-1878.23,0.00027397,9]
[390817758,1760170294677,-7417.581521,0.00027397,7]
[390817759,1760170294687,-1808.48044686,0.00027397,9]
[390817760,1760170294698,-7417.581521,0.00027397,7]
[390817761,1760170294707,-1878.23,0.00027397,9]
[390817762,1760170294717,-1878.23,0.00027397,9]
[390817763,1760170294730,-1878.23,0.00027397,9]
[390817764,1760170294740,-1878.23,0.00027397,9]
[390817765,1760170294750,-1878.23,0.00027397,9]
[390817766,1760170294759,-7417.581521,0.00027397,7]
[390817767,1760170294769,-1878.23,0.00027397,9]
[390817768,1760170294778,-7417.581521,0.00027397,7]
[390817769,1760170294787,-1878.23,0.00027397,9]
[390817770,1760170294797,-1878.3106344,0.00027397,9]
[390817771,1760170294807,-500.0,0.00027397,9]
[390817772,1760170294817,-225077.64052135,0.00029792,20]
[390817773,1760170294829,-16501.377635,0.00029792,20]
[390817774,1760170296467,1000.0,0.00027397,120]
[390817775,1760170296585,1000.0,0.00027397,120]
[390817776,1760170296684,1000.0,0.00027397,120]
[390817777,1760170296779,1000.0,0.00027397,120]
[390817778,1760170296881,1000.0,0.00027397,120]
[390817779,1760170296980,602.202,0.00027397,120]
[390817780,1760170378333,167.7085667,0.00011229,2]
[390817800,1760170451889,2433.9,0.00015571,2]
[390817802,1760170474413,153.0,0.00024,120]
[390817803,1760170475833,153.0,0.00026,120]
[390817810,1760170587261,155.0,0.00024,120]
[390817811,1760170588629,155.0,0.000261,120]
[390817814,1760170640145,5000.0,0.00017,10]
[390817815,1760170648681,1737.41192989,0.00017,10]
[390817816,1760170664299,5000.0,0.00017,10]
[390817818,1760170835162,200.0,0.00027,120]
[390817819,1760170840867,-441.60937542,0.00016834,2]
[390817820,1760170848571,-1991.65210757,0.00016834,2]
[390817821,1760170851160,-300.0,0.00016834,2]
[390817822,1760170854306,-151.0,0.00016834,2]
[390817835,1760171242136,-2629.22368897,0.00015957,2]
[390817836,1760171242157,-3343.3184914,0.00016118,2]
[390817837,1760171242178,-1200.0,0.00016235,2]
[390817838,1760171242198,-5000.0,0.00016236,2]
[390817839,1760171242219,-300.0,0.00016398,2]
[390817840,1760171242239,-300.0,0.00016399,2]
[390817841,1760171242258,-300.0,0.00016399,2]
[390817842,1760171242280,-300.0,0.00016399,2]
[390817843,1760171242300,-300.0,0.00016399,2]
[390817844,1760171242320,-1502.21727173,0.00016566,2]
[390817847,1760171284032,164.29065,0.00013699,2]
[390817848,1760171307288,382.97971632,0.0002,120]
[390817849,1760171309605,449.64558265,0.00025,120]
[390817850,1760171310381,6301.33215591,0.000212,30]
[390817853,1760171320435,11027.04940197,0.00024,30]
[390817854,1760171352111,-5000.0,0.000164,2]
[390817855,1760171352136,-150.0,0.000164,2]
[390817856,1760171352161,-1232.03408893,0.00016566,2]
[390817857,1760171352186,-189.7434575,0.00017,2]
[390817858,1760171352208,-9583.35193768,0.00017259,2]
[390817859,1760171360715,5000.0,0.00017,10]
[390817870,1760171383188,5000.0,0.00017,10]
[390818048,1760171438475,-5000.0,0.00017086,2]
[390818049,1760171438488,-7569.00369582,0.00017259,2]
[390818050,1760171438499,-200.0,0.00017259,2]
[390818051,1760171438508,-300.66151185,0.00017959,2]
[390818052,1760171438519,-300.0,0.00018049,2]
[390818053,1760171438528,-300.0,0.00018049,2]
[390818054,1760171438537,-500.0,0.0001805,2]
[390818055,1760171438546,-500.0,0.0001805,2]
[390818056,1760171438556,-501.53340102,0.0001805,2]
[390818057,1760171438566,-11233.62005821,0.0001805,2]
[390818058,1760171438576,-500.0,0.00018073,2]
[390818059,1760171438586,-500.0,0.00018073,2]
[390818060,1760171438596,-500.0,0.00018073,2]
[390818061,1760171438605,-184.63,0.00018171,2]
[390818062,1760171438615,-500.0,0.00018433,2]
[390818063,1760171438625,-500.0,0.0001845,2]
[390818064,1760171438634,-500.0,0.0001845,2]
[390818065,1760171438645,-500.0,0.0001845,2]
[390818066,1760171438655,-500.0,0.00018598,2]
[390818067,1760171438667,-1000.0,0.00018598,2]
[390818069,1760171438677,-1000.0,0.00018621,2]
[390818071,1760171438687,-502.18832237,0.00018621,2]
[390818074,1760171438696,-1000.0,0.00018621,2]
[390818076,1760171438706,-300.0,0.00018722,2]
[390818079,1760171438715,-300.0,0.00018722,2]
[390818082,1760171438726,-300.0,0.00018722,2]
[390818084,1760171438735,-300.0,0.00018722,2]
[390818088,1760171438745,-300.0,0.00018722,2]
[390818089,1760171438754,-300.0,0.00018722,2]
[390818091,1760171438764,-300.0,0.00018722,2]
[390818094,1760171438774,-300.0,0.00018722,2]
[390818100,1760171438819,-300.0,0.00018722,2]
[390818102,1760171438828,-300.0,0.00018722,2]
[390818104,1760171438838,-300.0,0.00018722,2]
[390818106,1760171438849,-300.0,0.00018722,2]
[390818108,1760171438859,-300.0,0.00018722,2]
[390818110,1760171438868,-300.0,0.00018722,2]
[390818112,1760171438877,-300.0,0.00018722,2]
[390818114,1760171438887,-222.48677283,0.00018722,2]
[390818116,1760171438896,-500.0,0.00018773,2]
[390818118,1760171438905,-500.0,0.000188,2]
[390818120,1760171438915,-500.0,0.000188,2]
[390818122,1760171438924,-500.0,0.00018981,2]
[390818124,1760171438933,-1006.85177544,0.00018998,2]
[390818126,1760171438942,-1000.0,0.00018998,2]
[390818128,1760171438951,-369.26,0.00019036,2]
[390818130,1760171438960,-501.41868759,0.00019146,2]
[390818132,1760171438969,-1506.06976709,0.00019168,2]
[390818134,1760171438978,-1500.0,0.00019168,2]
[390818136,1760171438988,-345.36620399,0.00019321,2]
[390818138,1760171438996,-1000.0,0.00019348,2]
[390818140,1760171439005,-1000.0,0.00019348,2]
[390818142,1760171439015,-500.0,0.00019466,2]
[390818144,1760171439027,-1500.0,0.00019546,2]
[390818146,1760171439036,-300.66151183,0.00019629,2]
[390818149,1760171439046,-2036.05364291,0.00019716,2]
[390818151,1760171439055,-753.14146875,0.00019896,2]
[390818153,1760171439065,-1500.0,0.00019896,2]
[390818155,1760171439076,-553.9,0.00019902,2]
[390818157,1760171439088,-301.77039271,0.0002,7]
[390818159,1760171439097,-2472.2,0.0002,2]
[390818161,1760171439107,-639.94615298,0.00020094,2]
[390818163,1760171439117,-169.44364623,0.00020137,3]
[390818165,1760171439127,-500.0,0.0002049,2]
[390818167,1760171439136,-738.53,0.00020767,2]
[390818169,1760171439145,-300.66151183,0.00021299,2]
[390818171,1760171439154,-600.0,0.00021397,20]
[390818173,1760171439165,-500.0,0.00021569,2]
[390818175,1760171439174,-923.16,0.00021632,2]
[390818177,1760171439184,-1107.79,0.00022498,2]
[390818179,1760171439193,-500.0,0.00022704,2]
[390818181,1760171439202,-300.66151183,0.00022969,2]
[390818183,1760171439212,-164.29065,0.00023182,2]
[390818185,1760171439221,-1292.42,0.00023363,2]
[390818187,1760171439231,-720.0,0.00023536,20]
[390818190,1760171439242,-177.90835513,0.000238,2]
[390818192,1760171439251,-183.03352716,0.000238,2]
[390818193,1760171439260,-2609.37557469,0.00023821,2]
[390818195,1760171439270,-298.08050243,0.00023825,2]
[390818197,1760171439280,-500.0,0.00023839,2]
[390818199,1760171439289,-177.90835513,0.000241,2]
[390818202,1760171439300,-183.03352716,0.000241,2]
[390818204,1760171439310,-1477.05,0.00024228,2]
[390818206,1760171439319,-500.0,0.000243,3]
[390818208,1760171439343,-166.601,0.00024393,6]
[390818210,1760171439353,-300.66151183,0.0002464,2]
[390818211,1760171439362,-8177.45785724,0.0002499,2]
[390818214,1760171439373,-500.0,0.00025031,2]
[390818215,1760171439382,-1661.69,0.00025093,2]
[390818217,1760171439392,-4188.18607273,0.00025148,2]
[390818219,1760171439401,-500.0,0.00025148,2]
[390818221,1760171439413,-500.0,0.00025148,2]
[390818223,1760171439422,-500.0,0.00025148,2]
[390818225,1760171439431,-500.0,0.00025148,2]
[390818227,1760171439442,-272.36761398,0.00025148,2]
[390818229,1760171439451,-168.0,0.00025412,2]
[390818230,1760171439460,-988.0,0.00025489,2]
[390818232,1760171439470,-168.0,0.00025572,2]
[390818234,1760171439483,-989.0,0.00025598,2]
[390818236,1760171439493,-988.0,0.00025673,2]
[390818238,1760171439504,-168.0,0.00025674,2]
[390818240,1760171439513,-416.66083531,0.00025718,2]
[390818242,1760171439523,-1014.81,0.0002578,10]
[390818244,1760171439533,-845.67,0.0002578,10]
[390818245,1760171439542,-109659.847745,0.0002579,2]
[390818246,1760171439552,-151.0,0.000258,11]
[390818247,1760171439563,-151.0,0.000258,11]
[390818248,1760171439573,-2609.37557469,0.000258,3]
[390818249,1760171439582,-646.64,0.00025808,3]
[390818250,1760171439593,-219319.69549,0.00025818,2]
[390818251,1760171439603,-109659.847745,0.00025828,2]
[390818252,1760171439614,-500.0,0.00025837,2]
[390818253,1760171439623,-494.78762789,0.00025837,2]
[390818254,1760171439632,-500.0,0.00025837,2]
[390818255,1760171439642,-500.0,0.00025837,2]
[390818256,1760171439652,-500.0,0.00025837,2]
[390818257,1760171439663,-500.0,0.00025837,2]
[390818258,1760171439673,-500.0,0.00025837,2]
[390818259,1760171439682,-500.0,0.00025837,2]
[390818260,1760171439692,-500.0,0.00025837,2]
[390818261,1760171439701,-500.0,0.00025837,2]
[390818262,1760171439710,-500.0,0.00025837,2]
[390818263,1760171439720,-500.0,0.00025837,2]
[390818264,1760171439731,-500.0,0.00025837,2]
[390818265,1760171439741,-500.0,0.00025837,2]
[390818266,1760171439750,-500.0,0.00025837,2]
[390818267,1760171439760,-500.0,0.00025837,2]
[390818268,1760171439769,-600.0,0.00025837,2]
[390818269,1760171439778,-303.93370976,0.00025837,2]
[390818270,1760171439787,-500.0,0.00025837,2]
[390818271,1760171439796,-365.68441,0.00025837,2]
[390818272,1760171439806,-600022.55573748,0.00025838,2]
[390818273,1760171439815,-1000.0,0.00025849,2]
[390818274,1760171439824,-500.0,0.0002585,5]
[390818275,1760171439833,-370000.0,0.0002586,2]
[390818276,1760171439842,-500.0,0.00025873,2]
[390818277,1760171439853,-500.0,0.00025873,2]
[390818278,1760171439863,-500.0,0.00025873,2]
[390818279,1760171439872,-500.0,0.00025873,2]
[390818280,1760171439881,-500.0,0.00025873,2]
[390818281,1760171439891,-500.0,0.00025873,2]
[390818282,1760171439902,-366.79694638,0.00025873,2]
[390818283,1760171439913,-500.0,0.00025873,2]
[390818284,1760171439922,-500.0,0.00025873,2]
[390818285,1760171439933,-500.0,0.00025873,2]
[390818286,1760171439942,-500.0,0.00025873,2]
[390818287,1760171439951,-864.0,0.0002589,20]
[390818288,1760171439960,-989.0,0.00025922,2]
[390818290,1760171439969,-1846.32,0.00025959,2]
[390818293,1760171439978,-8033.5,0.00026027,2]
[390818296,1760171439987,-416.66083528,0.00026113,2]
[390818298,1760171439996,-500.0,0.00026124,5]
[390818301,1760171440005,-168.0,0.00026156,2]
[390818304,1760171440014,-151.0,0.000262,13]
[390818306,1760171440022,-310.63948797,0.00026283,2]
[390818308,1760171440032,-151.0,0.000263,10]
[390818310,1760171440041,-300.66151183,0.0002631,2]
[390818313,1760171440050,-168.0,0.00026332,2]
[390818315,1760171440059,-988.0,0.00026332,7]
[390818316,1760171440069,-500.0,0.00026398,5]
[390818318,1760171440078,-988.0,0.00026414,2]
[390818320,1760171440087,-500.0,0.00026421,2]
[390818323,1760171440096,-992.0,0.00026421,2]
[390818324,1760171440105,-156.86003574,0.00026421,2]
[390818326,1760171440117,-1000.0,0.00026421,2]
[390818328,1760171440126,-1000.0,0.00026421,2]
[390818330,1760171440135,-1000.0,0.00026421,2]
[390818332,1760171440144,-998.51325855,0.00026421,2]
[390818334,1760171440154,-502.45008947,0.00026421,2]
[390818336,1760171440164,-500.66067143,0.00026421,2]
[390818338,1760171440174,-151.0,0.000265,12]
[390818340,1760171440183,-416.66083528,0.00026508,2]
[390818342,1760171440194,-151.0,0.000266,17]
[390818344,1760171440203,-2609.37557469,0.000266,3]
[390818346,1760171440213,-2609.37557469,0.000266,3]
[390818348,1760171440223,-168.0,0.00026617,2]
[390818350,1760171440232,-988.0,0.00026629,2]
[390818352,1760171440242,-500.0,0.00026672,5]
[390818354,1760171440251,-988.0,0.00026773,7]
[390818356,1760171440261,-151.0,0.000268,13]
[390818358,1760171440270,-500.0,0.00026873,2]
[390818360,1760171440279,-500.0,0.00026873,2]
[390818362,1760171440289,-151.0,0.000269,12]
[390818364,1760171440298,-300.514664,0.000269,3]
[390818366,1760171440307,-216.44997,0.000269,3]
[390818368,1760171440316,-416.66083528,0.00026902,2]
[390818370,1760171440325,-500.0,0.00026946,5]
[390818372,1760171440335,-168.0,0.00026961,2]
[390818374,1760171440344,-1500.0,0.00026968,2]
[390818376,1760171440354,-1500.0,0.00026968,2]
[390818379,1760171440373,-1500.0,0.00026968,2]
[390818381,1760171440384,-500.0,0.00027,5]
[390818383,1760171440394,-150.11,0.00027052,7]
[390818385,1760171440403,-150.76,0.00027087,7]
[390818387,1760171440414,-168.0,0.00027096,2]
[390818389,1760171440424,-151.0,0.000271,20]
[390818391,1760171440432,-168.0,0.00027107,2]
[390818393,1760171440442,-8033.5,0.00027123,4]
[390818395,1760171440452,-150.11,0.00027152,7]
[390818397,1760171440463,-989.0,0.00027185,7]
[390818399,1760171440473,-150.76,0.00027187,7]
[390818401,1760171440487,-302.1555326,0.00027187,2]
[390818403,1760171440497,-1207.41350825,0.00027187,2]
[390818405,1760171440507,-729.05520452,0.00027187,2]
[390818407,1760171440517,-151.0,0.000272,16]
[390818409,1760171440527,-1000.0,0.00027219,2]
[390818411,1760171440536,-500.0,0.0002722,5]
[390818413,1760171440546,-300.514664,0.00027225,3]
[390818415,1760171440557,-216.44997,0.00027225,3]
[390818417,1760171440567,-150.76,0.00027287,7]
[390818419,1760171440576,-416.66083528,0.00027297,2]
[390818421,1760171440585,-6720.221775,0.00027297,2]
[390818423,1760171440594,-168.0,0.00027315,2]
[390818425,1760171440603,-500.0,0.00027373,2]
[390818427,1760171440614,-150.0,0.00027373,2]
[390818429,1760171440623,-150.0,0.00027373,2]
[390818431,1760171440632,-150.0,0.00027373,2]
[390818433,1760171440642,-500.0,0.00027373,2]
[390818435,1760171440652,-300.514664,0.00027376,10]
[390818437,1760171440662,-216.44997,0.00027376,10]
[390818439,1760171440671,-150.76,0.00027387,7]
[390818441,1760171440680,-500.0,0.00027397,9]
[390818443,1760171440689,-500.0,0.00027397,9]
[390818445,1760171440699,-500.0,0.00027397,9]
[390818447,1760171440707,-500.0,0.00027397,9]
[390818449,1760171440717,-500.0,0.00027397,9]
[390818451,1760171440727,-500.0,0.00027397,9]
[390818452,1760171440736,-500.0,0.00027397,9]
[390818453,1760171440745,-500.0,0.00027397,9]
[390818454,1760171440754,-500.0,0.00027397,9]
[390818455,1760171440764,-500.0,0.00027397,9]
[390818456,1760171440773,-300.0,0.00027397,7]
[390818457,1760171440782,-500.0,0.00027397,9]
[390818458,1760171440791,-500.90452084,0.00027397,9]
[390818459,1760171440800,-500.0,0.00027397,9]
[390818460,1760171440810,-500.0,0.00027397,9]
[390818461,1760171440819,-500.0,0.00027397,9]
[390818462,1760171440829,-500.27159111,0.00027397,9]
[390818463,1760171440838,-500.0,0.00027397,9]
[390818465,1760171440847,-500.0,0.00027397,9]
[390818466,1760171440857,-500.0,0.00027397,9]
[390818467,1760171440865,-500.0,0.00027397,9]
[390818468,1760171440874,-500.0,0.00027397,9]
[390818469,1760171440884,-500.0,0.00027397,9]
[390818470,1760171440892,-500.0,0.00027397,9]
[390818471,1760171440901,-500.0,0.00027397,9]
[390818472,1760171440911,-610.14470396,0.00027397,9]
[390818474,1760171440921,-500.0,0.00027397,9]
[390818476,1760171440931,-500.0,0.00027397,9]
[390818477,1760171440940,-520.0,0.00027397,3]
[390818479,1760171440949,-500.0,0.00027397,9]
[390818480,1760171440958,-500.0,0.00027397,9]
[390818481,1760171440968,-500.0,0.00027397,9]
[390818482,1760171440979,-500.68,0.00027397,9]
[390818483,1760171440988,-500.0,0.00027397,9]
[390818484,1760171440998,-500.0,0.00027397,9]
[390818485,1760171441007,-501.34326785,0.00027397,9]
[390818486,1760171441018,-500.0,0.00027397,9]
[390818487,1760171441027,-500.0,0.00027397,9]
[390818488,1760171441036,-500.0,0.00027397,9]
[390818489,1760171441046,-500.0,0.00027397,9]
[390818490,1760171441056,-500.0,0.00027397,9]
[390818491,1760171441066,-500.0,0.00027397,9]
[390818492,1760171441075,-500.0,0.00027397,9]
[390818493,1760171441084,-500.0,0.00027397,9]
[390818494,1760171441095,-500.0,0.00027397,9]
[390818495,1760171441104,-500.0,0.00027397,9]
[390818496,1760171441114,-500.0,0.00027397,9]
[390818497,1760171441124,-500.0,0.00027397,9]
[390818498,1760171441135,-615.73,0.00027397,9]
[390818499,1760171441144,-500.0,0.00027397,9]
[390818500,1760171441154,-500.0,0.00027397,9]
[390818501,1760171441164,-500.0,0.00027397,9]
[390818502,1760171441174,-500.0,0.00027397,9]
[390818503,1760171441183,-500.0,0.00027397,9]
[390818504,1760171441193,-336.29,0.00027397,9]
[390818505,1760171441203,-500.0,0.00027397,9]
[390818506,1760171441213,-500.0,0.00027397,9]
[390818507,1760171441224,-500.0,0.00027397,9]
[390818508,1760171441233,-500.0,0.00027397,9]
[390818509,1760171441242,-500.0,0.00027397,9]
[390818510,1760171441251,-190.5,0.00027397,9]
[390818511,1760171441262,-500.0,0.00027397,9]
[390818512,1760171441272,-500.0,0.00027397,9]
[390818513,1760171441281,-561.26,0.00027397,9]
[390818514,1760171441291,-461.8125418,0.00027397,9]
[390818515,1760171441302,-500.0,0.00027397,9]
[390818516,1760171441312,-500.0,0.00027397,9]
[390818517,1760171441321,-500.0,0.00027397,9]
[390818518,1760171441330,-500.0,0.00027397,9]
[390818519,1760171441340,-500.0,0.00027397,9]
[390818520,1760171441349,-500.0,0.00027397,9]
[390818521,1760171441359,-500.0,0.00027397,9]
[390818522,1760171441368,-500.0,0.00027397,9]
[390818523,1760171441377,-500.0,0.00027397,9]
[390818524,1760171441387,-500.0,0.00027397,9]
[390818525,1760171441396,-500.0,0.00027397,9]
[390818526,1760171441407,-500.0,0.00027397,9]
[390818527,1760171441418,-500.0,0.00027397,9]
[390818528,1760171441428,-500.0,0.00027397,9]
[390818529,1760171441438,-500.0,0.00027397,9]